Cogmind - Beta 16 @@@ ROGUE MODE // 2026.01.08 @ 21:55:00 Player: FrigidRock Result: Destroyed by G-47 Trooper with Particle Gun Performance ------------- Evolutions (2) 1000 Regions Visited (8) 1600 Robots Destroyed (116) 580 Value Destroyed (3940) 3940 Prototype IDs (16) 320 Alien Tech Used (0) 0 Bonus (1448) 1448 TOTAL SCORE: 8888 Bonus ------- High Alert Combat Kills 289 Follower Combat Kills 259 Entered Garrisons 400 Used RIF Installer 500 Cogmind --------- Core Integrity 0/550 Matter 300/300 Energy 159/160 System Corruption 5% Temperature Cool (27) Movement Flying (39) Location -8/Garrison Parts ------- > --- POWER (1) -------- Light Nuclear Core > --- PROPULSION (4) --- Carbon-fiber Leg Surge Thruster Surge Thruster Surge Thruster > --- UTILITY (3) ------ Light Armor Plating Relay Coupler [Grunt] (25) Relay Coupler [Hunter] (4) > --- WEAPON (3) ------- Improved Datajack > --- INVENTORY (5) ---- High-capacity Matter Pod (200) Core Shielding Light Armor Plating Relay Coupler [NC] (28) Plasma Cutter Peak State ------------ > --- POWER ------------ Improved Ion Engine > --- PROPULSION ------- Medium Treads Medium Treads Medium Treads Medium Treads > --- UTILITY ---------- Huge Storage Unit Core Shielding Improved Light Armor Plating > --- WEAPON ----------- Lightning Gun Heavy Laser Assault Cannon > --- INVENTORY -------- Aluminum Leg Improved Heat Sink Medium Storage Unit High-capacity Matter Pod Relay Coupler [NC] Relay Coupler [Swarmer] Relay Coupler [Grunt] Relay Coupler [Grunt] Datajack Plasma Cutter [Rating: 35] Favorites ----------- Power Deuterium Engine Engine Deuterium Engine Power Core Light Nuclear Core Propulsion Light Treads Treads Light Treads Leg Aluminum Leg Flight Unit Surge Thruster Utility Improved Light Armor Plating Device Improved Heat Sink Storage Medium Storage Unit Hackware Relay Coupler [Sentry] Protection Improved Light Armor Plating Weapon High-powered Shotgun Energy Gun Pulse Rifle Ballistic Gun High-powered Shotgun Ballistic Cannon Flak Cannon Launcher Rocket Launcher Special Weapon Plasma Cutter Impact Weapon Heavy Flail Slashing Weapon Blade Saw Special Melee Weapon Datajack Build | -11 -10 -10 -10 -9 -8 -8 -8 -8 ------- Run | Yrd Mat Min Exi Min Mat Gar Mat Gar Slots Evolved 4 | . . . . . 4 . . . Power . | . . . . . . . . . Propulsion 2 | . . . . . 2 . . . Utility 1 | . . . . . 1 . . . Weapon 1 | . . . . . 1 . . . Parts Attached 86 | 8 4 9 1 . 22 16 14 12 Power 13 | 1 2 2 . . 4 2 1 1 Engine 9 | 1 2 1 . . 3 1 1 . Core 4 | . . 1 . . 1 1 . 1 Reactor . | . . . . . . . . . Propulsion 28 | 2 2 2 . . 5 7 6 4 Treads 14 | 2 2 . . . 5 . 5 . Leg 11 | . . 2 . . . 7 1 1 Wheel . | . . . . . . . . . Hover . | . . . . . . . . . Flight 3 | . . . . . . . . 3 Utility 21 | 3 . 3 . . 4 4 4 3 Device 5 | 2 . 1 . . 1 1 . . Storage 3 | 1 . . . . 1 1 . . Processor . | . . . . . . . . . Hackware 4 | . . . . . . 1 1 2 Protection 9 | . . 2 . . 2 1 3 1 Artifact . | . . . . . . . . . Weapon 24 | 2 . 2 1 . 9 3 3 4 Energy Gun 6 | 1 . 1 . . . 2 2 . Energy Cannon . | . . . . . . . . . Ballistic Gun 5 | 1 . . . . 4 . . . Ballistic Cannon 4 | . . . . . 3 . 1 . Launcher 3 | . . 1 . . . 1 . 1 Special Weapon 1 | . . . . . . . . 1 Impact Weapon 2 | . . . . . 2 . . . Slashing Weapon 1 | . . . . . . . . 1 Piercing Weapon . | . . . . . . . . . Special Melee Weapon 2 | . . . 1 . . . . 1 Unidentified Prototypes . | . . . . . . . . . Corrupted Parts 1 | . . . . . 1 . . . System Corruption 2 | . . . . . 2 . . . Parts Lost 23 | . . 1 . . 3 6 5 8 Power 2 | . . . . . 1 . 1 . Propulsion 8 | . . . . . 1 2 1 4 Utility 5 | . . 1 . . . 2 . 2 Weapon 8 | . . . . . 1 2 3 2 Highest Loss Streak 5 | . . 1 . . 1 3 3 5 To Critical Strikes . | . . . . . . . . . Average Backups 8 | 2 7 7 8 8 9 9 9 6 Power . | . 1 1 1 1 . . . . Propulsion . | 1 1 1 1 1 . . . . Utility 4 | . 2 2 3 3 3 4 7 5 Weapon 2 | . 1 1 2 2 3 2 . . Tool/Special . | . . . . . . . . . Unused Backups 10 | . 2 1 1 . 3 . . 3 Power 1 | . . . . . 1 . . . Propulsion 2 | . 2 . . . . . . . Utility 4 | . . . 1 . . . . 3 Weapon 3 | . . 1 . . 2 . . . Tool/Special . | . . . . . . . . . Average Slot Usage (%) 95 | . 100 99 100 100 98 95 91 54 Engine 7 | . 14 13 . . 7 6 8 1 Core 2 | . . . 14 14 1 2 . 2 Treads 20 | . 28 25 . . 31 2 27 11 Leg 10 | . . 1 28 28 3 30 7 1 Device 7 | . 14 10 14 14 9 2 . . Storage 10 | . 14 14 14 14 9 9 9 3 Protection 8 | . . 3 . . 8 14 17 9 Energy Gun 9 | . 14 14 14 14 5 8 10 . Ballistic Gun 7 | . 14 2 . . 10 10 . . Ballistic Cannon 4 | . . . . . 9 . 8 2 Launcher 1 | . . 11 2 14 . . . . Impact Weapon 1 | . . . . . 1 5 . . Special Melee Weapon 1 | . . . 11 . . . . 2 Peak Build Rating 35 | 7 7 17 17 17 31 28 35 27 Average Rating 20 | 5 7 8 16 17 28 23 27 16 On Entrance 15 | . 7 7 17 17 17 28 21 25 Avg Prop Armor Cover (%) 11 | . . 8 . . 11 7 . 12 Naked Turns . | . . . . . . . . . Heaviest Build 104 | 12 14 18 18 18 38 36 104 96 Greatest Support 112 | 40 40 40 30 30 80 60 112 106 Greatest Overweight (x) 1 | . . 1 . . 1 1 1 1 Average Overweight (x) . | . . . . . . . . . Largest Inventory Capacity 25 | 8 8 8 8 8 10 25 25 25 Average Capacity 10 | 7 8 8 8 8 9 10 21 11 Most Carried 11 | 5 8 8 8 8 10 10 11 11 Average Carried 8 | 2 7 7 8 8 9 9 9 6 Final Capacity 25 | 8 8 8 8 8 10 10 25 5 Final Carried 11 | 5 8 8 8 8 10 10 11 5 Class Distribution -------------------- 45% | Mutant 31% | Tank 13% | Scavenger-Tank 7% | Scavenger-Mutant Dominant Class ---------------- Mutant | -10/Materials Mutant | -10/Mines Mutant | -10/Exiles Mutant | -9/Mines Tank | -8/Materials Scavenger-Tank | -8/Garrison Mutant | -8/Materials Scavenger-Mutant | -8/Garrison Resources | -11 -10 -10 -10 -9 -8 -8 -8 -8 ----------- Run | Yrd Mat Min Exi Min Mat Gar Mat Gar Matter Collected 3390 | 265 241 111 244 54 1319 564 425 167 Remotely . | . . . . . . . . . Salvage Created 3323 | 168 319 134 . 154 1459 543 525 21 Parts 196 | 12 19 33 . 9 62 31 26 4 Haulers Intercepted 5 | . 1 . . . 4 . . . Recyclers Shooed 2 | . . . . 1 1 . . . Parts Field Recycled . | . . . . . . . . . Retrieved Matter . | . . . . . . . . . Parts Self-Destructed . | . . . . . . . . . Prevented . | . . . . . . . . . Parts Restored . | . . . . . . . . . Kills | -11 -10 -10 -10 -9 -8 -8 -8 -8 ------- Run | Yrd Mat Min Exi Min Mat Gar Mat Gar Combat Hostiles Destroyed 85 | . 8 12 . 3 31 16 13 2 Melee 4 | . . . . . 2 2 . . Guns 34 | . 7 3 . . 13 7 4 . Cannons 24 | . . . . . 13 . 9 2 AOE 19 | . 1 9 . 3 . 6 . . Classes Destroyed 14 | 3 3 1 . . 4 . 2 1 Worker 6 | 1 . 4 . . 1 . . . Builder 2 | . . 1 . . 1 . . . Tunneler 5 | 4 . 1 . . . . . . Hauler 5 | . 1 . . . 4 . . . Recycler 8 | 1 1 . . 2 4 . . . Mechanic 1 | . . . . . 1 . . . Watcher 4 | . . . . . 3 . 1 . Swarmer 29 | . 6 12 . 3 2 4 2 . Cutter 2 | . . . . . . . . 2 Grunt 34 | . 2 . . . 17 9 6 . Duelist 1 | . . . . . . . 1 . Protector 1 | . . . . . . . 1 . Sentry 15 | . . . . . 10 3 2 . Hunter 3 | . . . . . 2 . 1 . Best Kill Streak 7 | 6 3 7 . 5 3 6 3 2 Combat Bots Only 6 | . 3 5 . 3 3 6 3 2 Max Kills in Single Turn 5 | 1 1 5 . 2 1 4 2 1 Gunslinging 1 | . . . . . . . 1 . Exploded 4 | . 1 2 . 1 . 4 . . Melee 1 | . . . . . 1 1 . . Uniques/NPCs Destroyed . | . . . . . . . . . Combat | -11 -10 -10 -10 -9 -8 -8 -8 -8 -------- Run | Yrd Mat Min Exi Min Mat Gar Mat Gar Hostile Shots Fired 517 | . 30 26 . 8 190 80 73 110 Missed 155 | . 8 9 . 2 58 20 24 34 Hits 362 | . 22 17 . 6 132 60 49 76 Melee 9 | . . . . . . 1 3 5 Projectile 353 | . 22 17 . 6 132 59 46 71 AOE 1 | . . . . . . . . 1 Critical Strikes 13 | . . 1 . . 4 3 1 4 Damage Taken 5736 | 40 238 192 . 49 2185 1028 896 1108 Core 617 | . 23 23 . 7 115 157 88 204 Absorbed by Shields . | . . . . . . . . . Redirected to Shielding 73 | . . 2 . . . 12 19 40 Core Remaining (%) 89 | 100 . . . 78 . . . . Volleys Fired 223 | 13 23 13 . 4 86 33 42 9 Largest 3 | 2 2 2 . 1 3 3 3 1 Hottest 159 | 60 60 73 . 33 137 159 159 37 Shots Fired 514 | 26 46 23 . 4 248 73 85 9 Gun 342 | 26 46 10 . . 151 65 44 . Cannon 144 | . . . . . 97 . 41 6 Launcher 26 | . . 13 . 4 . 8 . 1 Special 2 | . . . . . . . . 2 Kinetic 316 | 13 23 . . . 197 35 42 6 Thermal 85 | . . . . . 51 30 2 2 Explosive 26 | . . 13 . 4 . 8 . 1 Electromagnetic 87 | 13 23 10 . . . . 41 . Robot Hit Streak 14 | 13 6 7 . 1 14 11 9 4 Robot Miss Streak 6 | 1 3 4 . 1 6 5 3 2 Penetration Max . | . . . . . . . . . Secondary Targets 6 | . 2 . . . 2 1 1 . Max Gunslinging Chain 1 | . 1 . . . 1 1 1 . Shots Hit Robots 356 | 19 26 8 4 1 188 50 53 7 Core Hits 221 | 8 15 17 . 10 119 25 25 2 Critical Kills 1 | . . . . . . 1 . . Critical Parts Destroyed 5 | . . . . . 5 . . . Critical Strikes 13 | 1 . . . . 8 3 1 . Burn 5 | . . . . . 3 2 . . Corrupt 2 | 1 . . . . . . 1 . Smash 6 | . . . . . 5 1 . . Melee Attacks 50 | . . . 4 . 20 18 2 6 Impact 28 | . . . . . 20 8 . . Slashing 2 | . . . . . . . . 2 Piercing . | . . . . . . . . . Sneak Attacks 12 | . . . 4 . . 6 1 1 Combat Hostiles 1 | . . . . . . 1 . . Follow-up Attacks 1 | . . . . . 1 . . . Damage Inflicted 9260 | 323 408 950 . 320 4245 1522 1358 134 Guns 3748 | 193 280 48 . . 1960 666 601 . Cannons 2272 | . . . . . 1546 . 634 92 Explosions 2238 | 130 123 898 . 320 137 481 123 26 Melee 993 | . . . . . 602 375 . 16 Ramming 9 | . 5 4 . . . . . . Kinetic 4163 | 46 79 . . . 2907 386 653 92 Thermal 1333 | 130 123 44 . . 599 280 157 . Explosive 1818 | . . 854 . 320 137 481 . 26 Electromagnetic 944 | 147 201 48 . . . . 548 . Impact 977 | . . . . . 602 375 . . Slashing 16 | . . . . . . . . 16 Piercing . | . . . . . . . . . Highest Corruption 5 | . . . . . 2 2 2 5 Average Corruption 2 | . . . . . 2 2 2 2 Corruption Purged . | . . . . . . . . . Corruption Blocked . | . . . . . . . . . Effects 36 | . . . . . 2 18 10 6 Message Errors 6 | . . . . . . 5 1 . Matter Fused 8 | . . . . . 1 4 1 2 Heat Flow Errors 2 | . . . . . . . . 2 Energy Discharges 5 | . . . . . . 3 1 1 Parts Fused 1 | . . . . . . 1 . . Data Loss (minor) 6 | . . . . . . 2 4 . Data Loss (major) 3 | . . . . . . 2 1 . Misfires 3 | . . . . . 1 1 1 . Alerts 1 | . . . . . . . . 1 Weapon Failures 1 | . . . . . . . 1 . Overload Shots . | . . . . . . . . . Overflow Damage 462 | 9 . 57 . 18 328 50 . . Projectiles 5 | . . . . . 5 . . . Explosions 115 | 9 . 57 . 18 22 9 . . Melee 342 | . . . . . 301 41 . . Knockbacks 54 | . . . . . 42 . 10 2 Impact . | . . . . . . . . . Kinetic 49 | . . . . . 37 . 10 2 Secondary 5 | . . . . . 5 . . . Self-Inflicted Damage 399 | 40 51 41 . . 139 103 . 25 Shots 10 | 1 2 1 . . 2 3 . 1 Rammed 2 | . 2 . . . . . . . Targets Rammed 3 | . 2 1 . . . . . . Kicked 1 | . . 1 . . . . . . Crushed . | . . . . . . . . . Highest Temperature 406 | 52 52 48 . . 376 367 406 120 Average Temperature 96 | 22 24 16 . . 82 151 141 57 Received Heat Transfer 1995 | . 24 . . . 1035 495 387 54 Effects 10 | . . . . . 1 5 4 . Shutdowns 2 | . . . . . . 1 1 . Energy Bleed 2 | . . . . . . 1 1 . Interference 3 | . . . . . 1 2 . . Damage (minor) 3 | . . . . . . 1 2 . Siege Activations . | . . . . . . . . . Martial Activations . | . . . . . . . . . Shielding Activations . | . . . . . . . . . Robots Disrupted . | . . . . . . . . . Combat Hostiles . | . . . . . . . . . Robots Corrupted 4 | . . . . . 3 1 . . Combat Hostiles 4 | . . . . . 3 1 . . Parts Fried 7 | . . . . . 3 1 3 . Impact Corruptions 10 | . . . . . 8 2 . . Robots Melted . | . . . . . . . . . Combat Hostiles . | . . . . . . . . . Parts Melted 1 | . . . . . . 1 . . Heat Transferred 2744 | 100 150 50 . . 1517 703 224 . Parts Sabotaged . | . . . . . . . . . Parts Stolen . | . . . . . . . . . Parts Stripped . | . . . . . . . . . Power Chain Reactions 6 | 2 2 1 . . . . 1 . Alert | -11 -10 -10 -10 -9 -8 -8 -8 -8 ------- Run | Yrd Mat Min Exi Min Mat Gar Mat Gar Maximum Alert Level 3 | . . 1 . . 2 3 2 2 Low Security (%) 53 | 100 100 62 . 100 81 . . . Level 1 14 | . . 37 . . 17 2 . 85 Level 2 24 | . . . . . 1 63 100 14 Level 3 6 | . . . . . . 34 . . Level 4 . | . . . . . . . . . Level 5 . | . . . . . . . . . High Security . | . . . . . . . . . Max Security . | . . . . . . . . . Peak Influence 959 | 10 91 280 . 113 419 959 640 414 Initial 467 | . . 22 . . 39 272 467 352 Average 278 | . 24 155 . 44 136 648 556 370 Influence Increases 3279 | 30 270 410 . 113 1040 767 507 142 Destroy 0b10 Robot/C 1860 | . 160 240 . 60 620 380 340 60 Destroy 0b10 Robot/NC 170 | 30 10 30 . 10 70 5 15 . Destroy Leader 368 | . 32 40 . 10 194 20 72 . Allied During Kill 71 | . . . . . . 19 51 1 Trap Triggered on 0b10 30 | . . . . . . 30 . . Successful Hack 55 | . 16 . . . 28 7 4 . Disable Machine 120 | . 30 . . 15 45 . 15 15 Anti-Garrison Action 300 | . . . . . . 250 . 50 Destroy Structure 200 | . 7 85 . 18 38 41 10 1 Lose Combat Pursuer 105 | . 15 15 . . 45 15 . 15 Influence Decreases 2885 | 30 213 341 126 10 724 227 924 290 Entered New Map 1054 | . . 35 126 . 64 147 492 190 Time Decay 1481 | 30 213 296 . 10 630 . 302 . Lost Part 230 | . . 10 . . 30 60 50 80 Lost Ally 120 | . . . . . . 20 80 20 Squads Dispatched 10 | . 1 . . . 5 . 4 . Investigation 2 | . 1 . . . . . 1 . Extermination . | . . . . . . . . . Reinforcement 4 | . . . . . 2 . 2 . Assault 3 | . . . . . 2 . 1 . Garrison 1 | . . . . . 1 . . . Intercept . | . . . . . . . . . Searches Triggered . | . . . . . . . . . Construction Impeded 1 | . . . . . . . 1 . Haulers Reinforced . | . . . . . . . . . Active Scanning Responses . | . . . . . . . . . Cargo Convoy Interrupts . | . . . . . . . . . Stealth | -11 -10 -10 -10 -9 -8 -8 -8 -8 --------- Run | Yrd Mat Min Exi Min Mat Gar Mat Gar Distress Signals 8 | . . . . . 6 . 2 . Communications Jammed . | . . . . . . . . . Distress Signals . | . . . . . . . . . Times Spotted 143 | . 11 10 . 2 58 22 24 16 Peak Tracking Total 9 | . 3 3 . 3 8 7 5 9 Tactical Retreats 7 | . 1 1 . . 3 1 . 1 Traps | -11 -10 -10 -10 -9 -8 -8 -8 -8 ------- Run | Yrd Mat Min Exi Min Mat Gar Mat Gar Traps Triggered 10 | . 1 . . . 1 6 1 1 Indirectly . | . . . . . . . . . Trap Hack Attempts . | . . . . . . . . . Triggered . | . . . . . . . . . Disarmed . | . . . . . . . . . Reprogrammed . | . . . . . . . . . Reused 3 | . . . . . . 3 . . Traps Extracted . | . . . . . . . . . Installed 4 | . . . . . . 3 . 1 Triggered 3 | . . . . . . 3 . . Most Traps Carried 3 | . . . . . . 3 . . Machines | -11 -10 -10 -10 -9 -8 -8 -8 -8 ---------- Run | Yrd Mat Min Exi Min Mat Gar Mat Gar Machines Disabled 12 | . 2 . . 1 3 3 1 2 Max in Single Turn 2 | . 2 . . 1 2 1 1 1 Garrison Relay 4 | . . . . . . 3 . 1 Machines Repaired . | . . . . . . . . . Machines Dismantled 2 | . . . . . . . . 2 Machines Sabotaged . | . . . . . . . . . Overloaded Fab Kills . | . . . . . . . . . Hacking | -11 -10 -10 -10 -9 -8 -8 -8 -8 --------- Run | Yrd Mat Min Exi Min Mat Gar Mat Gar Machines Accessed 26 | . 3 2 1 . 12 3 5 . Terminals 17 | . 3 1 . . 8 3 2 . Fabricators . | . . . . . . . . . Repair Stations . | . . . . . . . . . Recycling Units 2 | . . . . . 1 . 1 . Scanalyzers 3 | . . . . . 2 . 1 . Garrison Access 2 | . . . . . 1 . 1 . Total Hacks 63 | . 13 2 4 . 29 5 10 . Successful 36 | . 8 1 4 . 16 1 6 . Failed 25 | . 5 1 . . 12 4 3 . Catastrophic . | . . . . . . . . . Database Lockouts 2 | . . . . . 1 . 1 . Manual 29 | . 9 1 . . 14 . 5 . Terminals 39 | . 13 1 . . 15 5 5 . Fabricators . | . . . . . . . . . Repair Stations . | . . . . . . . . . Recycling Units 6 | . . . . . 5 . 1 . Scanalyzers 11 | . . . . . 8 . 3 . Garrison Access 2 | . . . . . 1 . 1 . Terminal Hacks 11 | . 4 1 4 . 1 1 . . Record 4 | . . . 4 . . . . . Robot Analysis 3 | . 3 . . . . . . . Prototype ID Bank 1 | . 1 . . . . . . . Open Door 2 | . . 1 . . . 1 . . Garrison Index 1 | . . . . . 1 . . . Fabricator Hacks . | . . . . . . . . . Repair Station Hacks . | . . . . . . . . . Recycling Unit Hacks 2 | . . . . . 1 . 1 . Retrieve Components 2 | . . . . . 1 . 1 . Scanalyzer 8 | . . . . . 6 . 2 . Insert Component 1 | . . . . . 1 . . . Analyze 1 | . . . . . 1 . . . Retrieve Study 6 | . . . . . 4 . 2 . Garrison Access Hacks 2 | . . . . . 1 . 1 . Unlock Access 2 | . . . . . 1 . 1 . Unauthorized Hacks 13 | . 4 . . . 7 . 2 . Terminals 13 | . 4 . . . 7 . 2 . Botnet 5 | . 2 . . . 2 . 1 . Skim 8 | . 2 . . . 5 . 1 . Fabricators . | . . . . . . . . . Repair Stations . | . . . . . . . . . Recycling Units . | . . . . . . . . . Scanalyzers . | . . . . . . . . . Garrison Access . | . . . . . . . . . Data Cores Recovered . | . . . . . . . . . Used . | . . . . . . . . . Hacking Detections 18 | . 3 1 . . 9 3 2 . Full Trace Events . | . . . . . . . . . Feedback Events . | . . . . . . . . . Feedback Blocked . | . . . . . . . . . Robot Schematics Acquired . | . . . . . . . . . Robots Built . | . . . . . . . . . Authchips . | . . . . . . . . . Time . | . . . . . . . . . Total Robot Build Rating . | . . . . . . . . . Part Schematics Acquired 1 | . . . . . 1 . . . Parts Built . | . . . . . . . . . Authchips . | . . . . . . . . . Time . | . . . . . . . . . Total Part Build Rating . | . . . . . . . . . Part Studies Acquired 5 | . . . . . 4 . 1 . Parts Repaired . | . . . . . . . . . Time . | . . . . . . . . . Parts Recycled . | . . . . . . . . . Recycled Matter . | . . . . . . . . . Retrieved Matter . | . . . . . . . . . Retrieved Components 8 | . . . . . 6 . 2 . Parts Scanalyzed 1 | . . . . . 1 . . . Part Schematics Acquired 1 | . . . . . 1 . . . Parts Damaged . | . . . . . . . . . Bothacking | -11 -10 -10 -10 -9 -8 -8 -8 -8 ------------ Run | Yrd Mat Min Exi Min Mat Gar Mat Gar Used RIF Installer 1 | . . . . . . 1 . . Robots Hacked 9 | . . . 4 . . 3 1 1 Non-combat 3 | . . . 3 . . . . . Combat 6 | . . . 1 . . 3 1 1 Robot Hacks Applied 9 | . . . 4 . . 3 1 1 parse_system 4 | . . . 4 . . . . . reboot_system 2 | . . . . . . 2 . . formatsys_high 3 | . . . . . . 1 1 1 Relay Couplers Released 15 | . . . . . . 10 . 5 Machine Destruction 15 | . . . . . . 10 . 5 Attached 4 | . . . . . . 1 1 2 Fabnet Peak Effective % . | . . . . . . . . . Robots Rewired 3 | . . . . . . 3 . . Allies Hacked . | . . . . . . . . . Hacks Repelled . | . . . . . . . . . Allies | -11 -10 -10 -10 -9 -8 -8 -8 -8 -------- Run | Yrd Mat Min Exi Min Mat Gar Mat Gar Total Allies 7 | . . 1 . . . 4 1 1 Largest Group 4 | . . 1 . . . 4 3 1 Highest-Rated Group 96 | . . 31 . . . 96 71 21 Highest-Rated Ally 31 | . . 31 . . . 31 31 21 Total Orders . | . . . . . . . . . Ally Attacks 46 | . . . . . . 10 34 2 Total Damage 966 | . . . . . . 248 670 48 Kills 10 | . . . . . . 3 6 1 Allies Corrupted . | . . . . . . . . . Allies Melted 1 | . . . . . . . 1 . Intel | -11 -10 -10 -10 -9 -8 -8 -8 -8 ------- Run | Yrd Mat Min Exi Min Mat Gar Mat Gar Active Infowar (turns) 2701 | 32 699 532 620 50 768 . . . Structural 1837 | . . 399 620 50 768 . . . Seismic 864 | 32 699 133 . . . . . . Robot Analysis Total 3 | . 3 . . . . . . . Derelict Logs Recovered 1 | . . 1 . . . . . . Drone Launches . | . . . . . . . . . Drone Recoveries . | . . . . . . . . . Exploration | -11 -10 -10 -10 -9 -8 -8 -8 -8 ------------- Run | Yrd Mat Min Exi Min Mat Gar Mat Gar Turns Passed 6783 | 138 699 742 620 50 2405 1232 661 236 Spaces Moved 3705 | 56 378 403 509 36 1003 754 334 232 Core 3 | 3 . . . . . . . . Treads 1875 | 53 378 370 . . 786 34 231 23 Legs 1618 | . . 33 509 36 217 720 103 . Wheels . | . . . . . . . . . Hover . | . . . . . . . . . Flight 209 | . . . . . . . . 209 Fastest Speed 29 | 50 160 120 120 120 105 120 120 29 Average Speed 139 | 154 160 156 120 120 159 129 145 56 Slowest Speed 240 | 160 160 190 120 120 175 190 195 240 Overloaded Moves . | . . . . . . . . . Propulsion Burnouts . | . . . . . . . . . Robots Hopped 1 | . . . . . . . . 1 Potential Cave-ins . | . . . . . . . . . Cave-ins Triggered . | . . . . . . . . . Exploration Rate (%) 51 | 5 50 85 85 21 80 75 35 24 Regions Visited 8 Branch Regions 3 Pre-discovered Areas 2 | . . . 1 . 1 . . . Known Exits Taken 2 | . . . . . 1 . 1 . Unknown Exits Taken 5 | 1 1 1 1 1 . . . . Scrap Searched . | . . . . . . . . . Spaces Dug 30 | . . . . . 6 24 . . Terrain Destroyed 270 | 10 6 112 . 30 36 66 10 . Melee 6 | . . . . . 6 . . . Projectile 8 | . . . . . . . 8 . AOE 256 | 10 6 112 . 30 30 66 2 . Terrain Rammed . | . . . . . . . . . Walls Destroyed . | . . . . . . . . . Machines Disabled . | . . . . . . . . . Actions | -11 -10 -10 -10 -9 -8 -8 -8 -8 --------- Run | Yrd Mat Min Exi Min Mat Gar Mat Gar Total 4810 | 80 432 492 516 39 1593 931 429 298 Wait 564 | . 15 56 . . 420 33 18 22 Move 3695 | 55 377 402 508 35 1002 752 334 230 Hop 1 | . . . . . . . . 1 Pick Up 39 | 4 5 3 1 . 11 14 1 . Fast Attach 61 | 7 . 4 . . 12 13 10 15 Attach 15 | . . 1 . . 7 3 3 1 Detach 5 | . . . . . 3 . 1 1 Swap 52 | 1 4 4 2 . 15 16 10 . Drop 65 | . 6 8 1 . 18 21 8 3 Fire 223 | 13 23 13 . 4 86 33 42 9 Melee 48 | . . . 4 . 19 17 2 6 Ram . | . . . . . . . . . Kick 1 | . . 1 . . . . . . Crush 2 | . 2 . . . . . . . Escape Stasis 25 | . . . . . . 25 . . Rewire 1 | . . . . . . 1 . . Trap 4 | . . . . . . 3 . 1 Miscellaneous 9 | . . . . . . . . 9 Route ------- -11/Scrapyard -10/Materials (discovered 2 exits: [*Mat] / *Min) -10/Mines (discovered 4 exits: [*Mat x2] / *Exi / [*Sub]) -10/Exiles -9/Mines -8/Materials (discovered 2 exits: Fac / Gar) -8/Garrison (discovered 3 exits: *Mat x3) -8/Materials -8/Garrison History --------- Turn | Location | Event 46 | -11/Scrapyard | Discovered new exit (range 16) 139 | -11/Scrapyard | Entered Materials 229 | -10/Materials | Discovered new exit (range 11) 304 | -10/Materials | Build established: Mutant 652 | -10/Materials | Discovered new exit (range 11) 838 | -10/Materials | Entered Mines 845 | -10/Mines | Received a Rocket Launcher from a helpful Derelict 1006 | -10/Mines | Discovered new exit (range 13) 1092 | -10/Mines | Discovered new exit (range 14) 1230 | -10/Mines | Received a Mining Laser from a helpful Derelict 1238 | -10/Mines | Learned Materials stockpile data 1395 | -10/Mines | Discovered new exit (range 6) 1491 | -10/Mines | Met a Derelict who couldn't figure out how to use a Trap Extractor 1574 | -10/Mines | Deemed a non-threat by the Exiles lab entrance 1574 | -10/Mines | Discovered new exit (range 6) 1580 | -10/Mines | Entered Exiles 1609 | -10/Exiles | Met 8R-AWN 1627 | -10/Exiles | Met EX-HEX 1674 | -10/Exiles | Met EX-BIN 1833 | -10/Exiles | Met EX-DEC 1866 | -10/Exiles | Learned location of Zion (-6) 1908 | -10/Exiles | Discovered new exit (range 15) 2013 | -10/Exiles | Visited The Gauntlet 2200 | -10/Exiles | Entered Mines 2238 | -9/Mines | Discovered new exit (range 9) 2250 | -9/Mines | Entered Materials 2250 | -8/Materials | Evolved 4 slots: Propulsion x2, Utility x1, Weapon x1 2639 | -8/Materials | Build established: Tank 3589 | -8/Materials | Learned Factory fabricator intel 3629 | -8/Materials | Learned Storage emergency access door positions 3661 | -8/Materials | Learned Factory garrison access intel 3682 | -8/Materials | Learned Factory scanalyzer intel 3693 | -8/Materials | Learned location of 2 exits from Lower Caves 3696 | -8/Materials | Identified exit to Factory 3697 | -8/Materials | Learned Storage trap positions 3708 | -8/Materials | Learned location of 1 exit from Storage 3731 | -8/Materials | Learned Storage non-interactive machine intel 3851 | -8/Materials | Central database locked down 4537 | -8/Materials | Identified exit to Garrison 4579 | -8/Materials | Garrison activated, responded to threat 4650 | -8/Materials | First assault squad dispatched 4655 | -8/Materials | Entered Garrison 4737 | -8/Garrison | Triggered checkpoint 4803 | -8/Garrison | Garrison Relay disabled 4966 | -8/Garrison | Triggered checkpoint 4967 | -8/Garrison | Triggered checkpoint 5086 | -8/Garrison | Discovered new exit (range 13) 5125 | -8/Garrison | Triggered checkpoint 5196 | -8/Garrison | Lost 3 parts (1n1u1w) 5261 | -8/Garrison | Installed Relay Interface Framework 5329 | -8/Garrison | Build established: Scavenger-Tank 5377 | -8/Garrison | Triggered checkpoint 5402 | -8/Garrison | Garrison Relay disabled 5460 | -8/Garrison | Discovered new exit (range 15) 5463 | -8/Garrison | Triggered checkpoint 5596 | -8/Garrison | Triggered checkpoint 5683 | -8/Garrison | Triggered checkpoint 5714 | -8/Garrison | Garrison Relay disabled 5823 | -8/Garrison | Discovered new exit (range 10) 5887 | -8/Garrison | Entered Materials 5887 | -8/Materials | Accompanied by 3 allies 6181 | -8/Materials | Central database locked down 6253 | -8/Materials | Lost 4 allies 6287 | -8/Materials | First assault squad dispatched 6321 | -8/Materials | Core integrity fell below 50% 6414 | -8/Materials | Lost 3 parts (1p1n1w) 6480 | -8/Materials | Build established: Mutant 6548 | -8/Materials | Identified exit to Garrison 6548 | -8/Materials | Entered Garrison 6624 | -8/Garrison | Core integrity fell below 20% 6659 | -8/Garrison | Lost 5 parts (2n1u2w) 6703 | -8/Garrison | Lost 3 parts (2n1u) 6706 | -8/Garrison | Garrison Relay disabled 6784 | -8/Garrison | Destroyed by G-47 Trooper with Particle Gun Last Messages --------------- 06739_ Jacked H-55 Commando... >>formatsys_high Rerouting network defenses. Erasing system data. Installing primary routines, ETC: 6. 06740_ Slug penetrates Commando 3a. 06741_ Sneak attack on Commando 3a. 06741_ Reactivated Commando 3a. 06741_ Slug penetrates H-55 Commando. 06741_ H-55 Commando destroyed. 06743_ Wall collapses. 06743_ Acquired Lgt. Armor Plating. 06744_ Acquired 53 matter. 06746_ Acquired Carbon-fiber Leg+. 06752_ Acquired Lgt. Nuclear Core. 06761_ Acquired Relay Coupler [Grunt]. 06768_ System corrupted: Energy discharge (-36). 06775_ Commando 3a destroyed. 06777_ Acquired 30 matter. Garrison Door activated. Map ----- +----------------------------------------------------+ | ?????????????????????????????????????????????????? | | ?????????????????????????????????????????????????? | | ?????????????????????????????????????????????????? | | ?????????????????????????????????????????????????? | | ?????????????????????????????????????????????????? | | ?????????????????????????????????????????????????? | | ?????????????????????????????????????????????????? | | ?????????????????????????????????????????????????? | | ?????????????????????????????????????????????????? | | ?????????????????????????????????????????????????? | | ?????????????????????????????????????????????????? | | ?????????????????????#??##""""######?????????????? | | ???????????????????## ? ????????????? | | ??????????????????? ?? ????????????? | | ???????????????????? ? ?????????????? | | ????????????????????# ?# ## #?????????????? | | ????????????????????# ## ## ###???????????? | | ????????????????????" #???????????? | | ????????????????????" #???????????? | | ????????????????????" #???????????? | | ????????????????????" ? ????????????? | | ????????????????????# ?# ## #?????????????? | | ????????????????????# ## ## g #?????????????? | | ????????????????????# ######????????? | | ????????????????????# # #????????? | | ????????????????????# @ #### #????????? | | ????????????????????# ## ## ##??# #????????? | | ????????????????????# ??#ggg ## #???# #????????? | | ????????????????????# ???####### #???# #????????? | | ???????????????????????????????# #???# #????????? | | ???????????????????????????????# #???# #????????? | | ???????????????????????????????# #???# #????????? | | ???????????????????????????????# #???# #????????? | | ???????????????????????????????# ##### ##???????? | | ????????????????????????????#### =!!! ##??????? | | ????????????????????????????# !%= !!"######## | | ????????????????????????????#/##### ## [ [= %[! | | ????????????????????????????# [#??# ##! ######### | | ????????????????????????????# [#??# ## #???????? | | ????????????????????????????# [#??# ## #???????? | | ????????????????????????????# [#??# ##! #???????? | | ????????????????????????????# [#??# ## ###?????? | | ????????????????????????????# [#??# ## #?????? | | ????????????????????????????####??# ## #?????? | | ??????????????????????????????????# ## #?????? | | ??????????????????????????????????# #######?????? | | ??????????????????????????????????# #???????????? | | ?????????????????????????????????## ####????????? | | ??????????????????????????????#### ####?????? | | ??????????????????????????????# #?????? | +----------------------------------------------------+ Best States ------------- Heat Dissipation 45 Energy Generation 14 Energy Capacity 275 Matter Stores 300 Matter Capacity 300 Sight Range 16 Terrain Scan Density 10 Armor Coverage 300 Core Shielding 20 Evasion (%) 63 Recoil Reduction 4 Relay Coupler Types 2 Relay Coupler Value 29 Item Schematics ----------------- Datajack | -8/Materials | Scanalyzed Robot Schematics ------------------ None Fabricated ------------ Nothing Repaired ---------- Nothing Studied --------- Carbon-fiber Leg | -8/Materials | Hacked Hvy. Flail | -8/Materials | Hacked Flak Cannon | -8/Materials | Hacked Arm. Treads | -8/Materials | Hacked Datajack | -8/Materials | Hacked Alien Tech Used ----------------- None Achievements -------------- None Challenges ------------ None Game ------ Seed SurveybotRagnarokCloak Manual? 0 Play Time 00:53:32 Cumulative 504.1 hours Start 2026.01.07 @ 19:46:57 End 2026.01.08 @ 21:55:00 Sessions 2 Manual Loads 0 Difficulty Rogue Special Mode None Game No. 203 Rogue 130 Adventurer 68 Explorer 5 Win Type - Total 39 Types 20/3/4/5/3/0/1/1/0/2 Lore% 84 Gallery% 80 Achievement% 65 Wizard Run 0 Options --------- Layout 0 ASCII 0 Keyboard 0 Movement Numpad Keybinds 0 Fullscreen 1 Font 24/Smallcaps Map View 76x50 Zoom Use 0% Tactical HUD 1 Map Filters NONE Filters NONE Steam 1 RUN: 04a1470b-08b9-470a-ad53-067b4c0b85d1